fUSD/lending_fUSD_20240125
["ID","MTS","AMOUNT","RATE_DAILY","PERIOD"]
[312728726,1706189488158,-500.0,0.00052876,31]
[312728727,1706189488169,-500.0,0.00052876,31]
[312728728,1706189488179,-500.0,0.00052876,31]
[312728729,1706189488189,-4443.62,0.00052876,31]
[312728730,1706189488198,-500.0,0.00052876,31]
[312728731,1706189488208,-500.0,0.00052876,31]
[312728732,1706189488219,-876.57,0.00052876,31]
[312728733,1706189488230,-793.58,0.00052876,31]
[312728734,1706189488239,-500.0,0.00052876,31]
[312728735,1706189488249,-178.5273152,0.00052876,31]
[312728736,1706189488259,-605.29,0.00052876,31]
[312728737,1706189488270,-500.0,0.00052876,31]
[312728738,1706189488280,-798.73,0.00052876,31]
[312728739,1706189488290,-500.0,0.00052876,31]
[312728740,1706189488299,-741.46,0.00052876,31]
[312728741,1706189488310,-500.0,0.00052876,31]
[312728742,1706189488319,-500.0,0.00052876,31]
[312728743,1706189488329,-522.59,0.00052876,31]
[312728744,1706189488339,-1440.42,0.00052876,31]
[312728745,1706189488350,-59.97577085,0.00052876,31]
[312728746,1706189488363,-250.48040969,0.00052876,31]
[312728747,1706189489345,-726.71,0.00049589,31]
[312728748,1706189489354,-189.54381946,0.00052876,31]
[312728749,1706189489364,-3848.63,0.00052876,31]
[312728750,1706189489373,-659.44,0.00052876,31]
[312728751,1706189489382,-960.66,0.00052876,31]
[312728752,1706189489392,-3294.47,0.00052876,31]
[312728753,1706189489401,-1413.54,0.00052876,31]
[312728754,1706189489410,-557.9,0.00052876,31]
[312728755,1706189489419,-500.0,0.00052876,31]
[312728756,1706189489431,-500.0,0.00052876,31]
[312728757,1706189489440,-500.0,0.00052876,31]
[312728758,1706189489451,-500.0,0.00052876,31]
[312728759,1706189489461,-500.0,0.00052876,31]
[312728760,1706189489471,-658.39,0.00052876,31]
[312728761,1706189489482,-500.0,0.00052876,31]
[312728762,1706189489493,-500.0,0.00052876,31]
[312728763,1706189489504,-707.38,0.00052876,31]
[312728764,1706189489514,-806.49,0.00052876,31]
[312728765,1706189489524,-534.89,0.00052876,31]
[312728766,1706189489534,-1000.0,0.00052876,7]
[312728767,1706189489544,-585.5684519,0.00052876,31]
[312728768,1706189489554,-500.0,0.00052876,31]
[312728769,1706189489564,-2660.25,0.00052876,31]
[312728770,1706189489574,-308.41408943,0.00052876,31]
[312728771,1706189489583,-500.0,0.00052876,31]
[312728772,1706189489592,-654.66,0.00052876,31]
[312728773,1706189489604,-1220.14,0.00052876,31]
[312728774,1706189489614,-500.0,0.00052876,31]
[312728775,1706189489628,-500.0,0.00052876,31]
[312728776,1706189489638,-697.52,0.00052876,31]
[312728777,1706189489648,-1219.85,0.00052876,31]
[312728778,1706189489658,-510.67096902,0.00052876,31]
[312728779,1706189489669,-500.0,0.00052876,31]
[312728780,1706189489679,-182.14964838,0.00052876,31]
[312728781,1706189489688,-500.0,0.00052876,31]
[312728782,1706189489697,-2328.6,0.00052876,31]
[312728783,1706189489707,-500.0,0.00052876,31]
[312728784,1706189489717,-553.77,0.00052876,31]
[312728785,1706189489726,-2392.7,0.00052876,31]
[312728786,1706189489736,-500.0,0.00052876,31]
[312728787,1706189489746,-742.25,0.00052876,31]
[312728788,1706189489755,-500.0,0.00052876,31]
[312728789,1706189489766,-500.0,0.00052876,31]
[312728790,1706189489776,-766.81,0.00052876,31]
[312728791,1706189489785,-500.0,0.00052876,31]
[312728792,1706189489797,-500.0,0.00052876,31]
[312728793,1706189489808,-500.0,0.00052876,31]
[312728794,1706189489818,-720.22,0.00052876,31]
[312728795,1706189489829,-506.85,0.00052876,31]
[312728796,1706189489838,-2585.71,0.00052876,31]
[312728797,1706189489852,-895.53,0.00052876,2]
[312728798,1706189489861,-500.0,0.00052876,31]
[312728799,1706189489871,-1966.47,0.00052876,30]
[312728800,1706189489880,-500.0,0.00052876,31]
[312728801,1706189489889,-500.0,0.00052876,31]
[312728802,1706189489899,-568.09,0.00052876,31]
[312728803,1706189489910,-500.0,0.00052876,31]
[312728804,1706189489920,-1097.13,0.00052876,31]
[312728805,1706189489929,-678.21,0.00052876,31]
[312728806,1706189489939,-563.0,0.00052876,31]
[312728807,1706189489949,-500.0,0.00052876,31]
[312728808,1706189489958,-505.22,0.00052876,31]
[312728809,1706189489967,-1184.05,0.00052876,7]
[312728810,1706189489977,-500.0,0.00052876,31]
[312728811,1706189489986,-1978.23,0.00052876,31]
[312728812,1706189489995,-775.02,0.00052876,31]
[312728813,1706189490006,-500.0,0.00052876,31]
[312728814,1706189490015,-500.0,0.00052876,31]
[312728815,1706189490025,-500.0,0.00052876,31]
[312728816,1706189490036,-500.0,0.00052876,31]
[312728817,1706189490045,-500.0,0.00052876,31]
[312728818,1706189490471,-500.0,0.00052876,31]
[312728819,1706189490488,-563.64,0.00052876,31]
[312728820,1706189490504,-1788.81,0.00052876,31]
[312728821,1706189490514,-500.0,0.00052876,31]
[312728822,1706189490525,-824.87,0.00052876,31]
[312728823,1706189490535,-800.86,0.00052876,31]
[312728824,1706189490544,-500.0,0.00052876,31]
[312728825,1706189490554,-500.0,0.00052876,31]
[312728826,1706189490563,-624.88,0.00052876,31]
[312728827,1706189490573,-500.0,0.00052876,31]
[312728828,1706189490582,-388.64605151,0.00052876,31]
[312728829,1706189490591,-500.0,0.00052876,31]
[312728830,1706189490602,-500.0,0.00052876,31]
[312728831,1706189490610,-3861.01,0.00052876,5]
[312728832,1706189490620,-500.0,0.00052876,31]
[312728833,1706189490629,-500.0,0.00052876,31]
[312728834,1706189490641,-500.0,0.00052876,31]
[312728835,1706189490653,-562.52,0.00052876,31]
[312728836,1706189490662,-702.37,0.00052876,31]
[312728837,1706189490671,-500.0,0.00052876,31]
[312728838,1706189490683,-500.0,0.00052876,31]
[312728839,1706189490694,-474.16489416,0.00052876,31]
[312728840,1706189490706,-500.0,0.00052876,31]
[312728841,1706189490716,-500.0,0.00052876,31]
[312728842,1706189490726,-500.0,0.00052876,31]
[312728843,1706189490735,-1562.8,0.00052876,31]
[312728844,1706189490745,-729.44,0.00052876,31]
[312728845,1706189490754,-674.25,0.00052876,31]
[312728846,1706189490763,-500.0,0.00052876,31]
[312728847,1706189490773,-500.0,0.00052876,31]
[312728848,1706189490782,-1360.58,0.00052876,31]
[312728849,1706189490791,-530.21,0.00052876,31]
[312728850,1706189490800,-694.83,0.00052876,2]
[312728851,1706189490810,-500.0,0.00052876,31]
[312728852,1706189490819,-500.0,0.00052876,31]
[312728853,1706189490828,-650.93,0.00052876,31]
[312728854,1706189490837,-622.63,0.00052876,31]
[312728855,1706189490846,-1172.34,0.00052876,31]
[312728856,1706189490855,-1372.24,0.00052876,31]
[312728857,1706189490865,-500.0,0.00052876,31]
[312728858,1706189490874,-500.0,0.00052876,31]
[312728859,1706189490884,-500.0,0.00052876,31]
[312728860,1706189490893,-500.0,0.00052876,31]
[312728861,1706189490903,-500.0,0.00052876,31]
[312728862,1706189490912,-1771.9,0.00052876,31]
[312728863,1706189490921,-634.99,0.00052876,31]
[312728864,1706189490931,-214.0,0.00052877,10]
[312728865,1706189490940,-106532.96046348,0.00052878,30]
[312728866,1706189490949,-832.27573461,0.00052882,2]
[312728867,1706189490959,-151.0,0.00052884,14]
[312728868,1706189490968,-17873.49078507,0.00052884,2]
[312728869,1706189490977,-509710.39993082,0.00052884,30]
[312728870,1706189490986,-106532.96046348,0.00052888,30]
[312728871,1706189490995,-106532.96046348,0.00052888,30]
[312728872,1706189491004,-65000.0,0.0005289,28]
[312728873,1706189491013,-20000.0,0.0005289,18]
[312728874,1706189491023,-832.27573461,0.00052891,2]
[312728875,1706189491032,-6205.51145225,0.00052893,30]
[312728876,1706189491041,-509710.39993082,0.00052894,30]
[312728877,1706189491050,-509710.39993082,0.00052895,30]
[312728878,1706189491059,-6205.51145225,0.00052895,30]
[312728879,1706189491069,-100000.0,0.000529,30]
[312728880,1706189491078,-780.6992596,0.000529,83]
[312728881,1706189491088,-500.0,0.00052904,120]
[312728882,1706189491097,-200.0,0.00052915,30]
[312728883,1706189491106,-6205.51145225,0.00052915,30]
[312728884,1706189491115,-6205.51145225,0.00052919,30]
[312728885,1706189491124,-157.654436,0.0005292,30]
[312728886,1706189491134,-200.0,0.0005292,28]
[312728887,1706189491143,-1039.69550453,0.0005292,5]
[312728888,1706189491153,-321799.58666075,0.0005296,31]
[312728889,1706189491163,-316894.53403112,0.0005296,16]
[312728890,1706189491172,-151.0,0.0005296,14]
[312728891,1706189491182,-764.0432569,0.00052964,2]
[312728892,1706189491191,-2082.016089,0.00052964,2]
[312728893,1706189491201,-250.0,0.0005297,7]
[312728894,1706189491211,-300.0,0.0005297,7]
[312728895,1706189491221,-300.0,0.0005297,7]
[312728896,1706189491230,-211.0,0.0005299,30]
[312728897,1706189491239,-204.0,0.0005299,30]
[312728898,1706189491248,-204.0,0.0005299,30]
[312728899,1706189491257,-240.0,0.0005299,30]
[312728900,1706189491266,-204.0,0.0005299,30]
[312728901,1706189491276,-210.0,0.0005299,30]
[312728902,1706189491285,-204.0,0.0005299,30]
[312728903,1706189491295,-2055.0,0.00052999,30]
[312728904,1706189491304,-265.39452899,0.00052999,45]
[312728905,1706189491314,-2216.10358824,0.00052999,120]
[312728906,1706189491324,-3457.8854675,0.00053,30]
[312728907,1706189491333,-159.06318442,0.00053,2]
[312728908,1706189491343,-270280.10727208,0.00053,30]
[312728909,1706189491355,-600.0,0.00053,30]
[312728910,1706189491365,-260.01867216,0.00053,30]
[312728911,1706189491374,-269.78694006,0.00053,7]
[312728912,1706189491384,-150.0,0.00053,120]
[312728913,1706189491394,-300.0,0.00053,31]
[312728914,1706189491403,-298000.0,0.00053,120]
[312728915,1706189491413,-500000.0,0.00053,120]
[312728916,1706189491423,-150.0,0.00053,31]
[312728917,1706189491433,-200.0,0.00053014,120]
[312728918,1706189491444,-1000.0,0.00053079,2]
[312728919,1706189491454,-150.0,0.00053079,13]
[312728920,1706189491464,-150.0,0.00053079,13]
[312728921,1706189491474,-198.8108496,0.00053113,2]
[312728922,1706189491483,-764.0432569,0.00053114,2]
[312728923,1706189491494,-2082.016089,0.00053114,2]
[312728924,1706189491503,-200.0,0.00053123,120]
[312728925,1706189491513,-632.99,0.0005315,31]
[312728926,1706189491523,-1224.41,0.0005315,31]
[312728927,1706189491533,-684.55,0.0005315,31]
[312728928,1706189491542,-500.0,0.0005315,31]
[312728929,1706189491552,-500.0,0.0005315,31]
[312728930,1706189491562,-500.0,0.0005315,31]
[312728931,1706189491573,-500.0,0.0005315,31]
[312728932,1706189491582,-500.0,0.0005315,31]
[312728933,1706189491592,-591.91,0.0005315,31]
[312728934,1706189491605,-500.0,0.0005315,31]
[312728935,1706189491615,-500.0,0.0005315,31]
[312728936,1706189491626,-503.96,0.0005315,31]
[312728937,1706189491638,-500.0,0.0005315,31]
[312728938,1706189491648,-500.0,0.0005315,31]
[312728939,1706189491658,-500.0,0.0005315,31]
[312728940,1706189491667,-500.0,0.0005315,14]
[312728941,1706189491678,-504.11,0.0005315,31]
[312728942,1706189491687,-500.0,0.0005315,31]
[312728943,1706189491696,-441.57100898,0.0005315,31]
[312728944,1706189491706,-500.0,0.0005315,31]
[312728945,1706189491716,-253.78726396,0.0005315,31]
[312728946,1706189491726,-511.82,0.0005315,31]
[312728947,1706189491735,-578.99,0.0005315,31]
[312728948,1706189491745,-500.0,0.0005315,2]
[312728949,1706189491754,-662.95,0.0005315,31]
[312728950,1706189491764,-500.0,0.0005315,31]
[312728951,1706189491774,-500.0,0.0005315,31]
[312728952,1706189491783,-500.0,0.0005315,31]
[312728953,1706189491792,-500.0,0.0005315,31]
[312728954,1706189491802,-500.0,0.0005315,31]
[312728955,1706189491812,-500.0,0.0005315,31]
[312728956,1706189491822,-706.68,0.0005315,31]
[312728957,1706189491832,-500.0,0.0005315,31]
[312728958,1706189491842,-500.0,0.0005315,31]
[312728959,1706189491853,-500.0,0.0005315,31]
[312728960,1706189491863,-511.95,0.0005315,31]
[312728961,1706189491873,-508.41477764,0.0005315,31]
[312728962,1706189491883,-500.0,0.0005315,31]
[312728963,1706189491892,-261.81614715,0.0005315,31]
[312728964,1706189491902,-500.0,0.0005315,31]
[312728965,1706189491912,-500.0,0.0005315,31]
[312728966,1706189491921,-500.0,0.0005315,31]
[312728967,1706189491931,-586.25,0.0005315,31]
[312728968,1706189491941,-500.0,0.0005315,31]
[312728969,1706189491951,-847.89,0.0005315,31]
[312728970,1706189491960,-500.0,0.0005315,31]
[312728971,1706189491970,-847.27,0.0005315,31]
[312728972,1706189491980,-553.41,0.0005315,2]
[312728973,1706189491989,-500.0,0.0005315,31]
[312728974,1706189491999,-552.54,0.0005315,31]
[312728975,1706189492008,-500.0,0.0005315,31]
[312728976,1706189492018,-500.0,0.0005315,31]
[312728977,1706189492028,-500.0,0.0005315,10]
[312728978,1706189492038,-533.04,0.0005315,31]
[312728979,1706189492047,-500.0,0.0005315,31]
[312728980,1706189492056,-500.0,0.0005315,31]
[312728981,1706189492066,-500.0,0.0005315,31]
[312728982,1706189492075,-1263.99,0.0005315,31]
[312728983,1706189492084,-500.0,0.0005315,31]
[312728984,1706189492094,-500.0,0.0005315,31]
[312728985,1706189492105,-500.0,0.0005315,31]
[312728986,1706189492114,-4443.62,0.0005315,31]
[312728987,1706189492123,-500.0,0.0005315,31]
[312728988,1706189492133,-500.0,0.0005315,31]
[312728989,1706189492142,-876.57,0.0005315,31]
[312728990,1706189492152,-793.58,0.0005315,31]
[312728991,1706189492161,-500.0,0.0005315,31]
[312728992,1706189492171,-605.29,0.0005315,31]
[312728993,1706189492180,-500.0,0.0005315,31]
[312728994,1706189492189,-798.73,0.0005315,31]
[312728995,1706189492198,-500.0,0.0005315,31]
[312728996,1706189492207,-741.46,0.0005315,31]
[312728997,1706189492216,-500.0,0.0005315,31]
[312728998,1706189492226,-232.23444009,0.0005315,31]
[312728999,1706189492235,-522.59,0.0005315,31]
[312729000,1706189492244,-1440.42,0.0005315,31]
[312729001,1706189492253,-500.0,0.0005315,31]
[312729002,1706189492263,-3848.63,0.0005315,31]
[312729003,1706189492274,-659.44,0.0005315,31]
[312729004,1706189492284,-960.66,0.0005315,31]
[312729005,1706189492294,-3294.47,0.0005315,31]
[312729006,1706189492303,-1413.54,0.0005315,31]
[312729007,1706189492313,-557.9,0.0005315,31]
[312729008,1706189492322,-500.0,0.0005315,31]
[312729009,1706189492331,-547.64159707,0.0005315,31]
[312729010,1706189492341,-483.51567701,0.0005315,31]
[312729011,1706189492350,-271.74754061,0.0005315,31]
[312729012,1706189492360,-500.0,0.0005315,31]
[312729013,1706189492370,-658.39,0.0005315,31]
[312729014,1706189492379,-500.0,0.0005315,31]
[312729015,1706189492388,-390.85649482,0.0005315,31]
[312729016,1706189492398,-707.38,0.0005315,31]
[312729017,1706189492407,-806.49,0.0005315,31]
[312729018,1706189492417,-534.89,0.0005315,31]
[312729019,1706189492426,-1000.0,0.0005315,7]
[312729020,1706189492435,-500.0,0.0005315,31]
[312729021,1706189492445,-2660.25,0.0005315,31]
[312729022,1706189492454,-500.0,0.0005315,31]
[312729023,1706189492463,-654.66,0.0005315,31]
[312729024,1706189492473,-1220.14,0.0005315,31]
[312729025,1706189492483,-500.0,0.0005315,31]
[312729026,1706189492493,-242.36348012,0.0005315,31]
[312729027,1706189492502,-697.52,0.0005315,31]
[312729028,1706189492511,-1219.85,0.0005315,31]
[312729029,1706189492520,-500.0,0.0005315,31]
[312729030,1706189492531,-500.0,0.0005315,31]
[312729031,1706189492542,-2328.6,0.0005315,31]
[312729032,1706189492552,-500.0,0.0005315,31]
[312729033,1706189492562,-553.77,0.0005315,31]
[312729034,1706189492571,-500.0,0.0005315,31]
[312729035,1706189492581,-2392.7,0.0005315,31]
[312729036,1706189492591,-742.25,0.0005315,31]
[312729037,1706189492602,-500.0,0.0005315,31]
[312729038,1706189492611,-500.0,0.0005315,31]
[312729039,1706189492622,-766.81,0.0005315,31]
[312729040,1706189492632,-500.0,0.0005315,31]
[312729041,1706189492644,-500.0,0.0005315,31]
[312729042,1706189492654,-720.22,0.0005315,31]
[312729043,1706189492665,-500.0,0.0005315,31]
[312729044,1706189492675,-506.85,0.0005315,31]
[312729045,1706189492686,-2585.71,0.0005315,31]
[312729046,1706189492696,-895.53,0.0005315,2]
[312729047,1706189492705,-500.0,0.0005315,31]
[312729048,1706189492716,-1966.47,0.0005315,30]
[312729049,1706189492725,-234.90072854,0.0005315,31]
[312729050,1706189492735,-500.0,0.0005315,31]
[312729051,1706189492745,-568.09,0.0005315,31]
[312729052,1706189492755,-500.0,0.0005315,31]
[312729053,1706189492765,-1097.13,0.0005315,31]
[312729054,1706189492774,-563.0,0.0005315,31]
[312729055,1706189492784,-678.21,0.0005315,31]
[312729056,1706189492793,-587.58371854,0.0005315,31]
[312729057,1706189492803,-505.22,0.0005315,31]
[312729058,1706189492812,-1184.05,0.0005315,7]
[312729059,1706189492822,-302.69994409,0.0005315,31]
[312729060,1706189492832,-1978.23,0.0005315,31]
[312729061,1706189492841,-775.02,0.0005315,31]
[312729062,1706189492851,-500.0,0.0005315,31]
[312729063,1706189492861,-500.0,0.0005315,31]
[312729064,1706189492871,-468.63161824,0.0005315,31]
[312729065,1706189492881,-500.0,0.0005315,31]
[312729066,1706189492890,-428.29330605,0.0005315,31]
[312729067,1706189492899,-500.0,0.0005315,31]
[312729068,1706189492909,-563.64,0.0005315,31]
[312729069,1706189492919,-1788.81,0.0005315,31]
[312729070,1706189492928,-500.0,0.0005315,31]
[312729071,1706189492938,-824.87,0.0005315,31]
[312729072,1706189492948,-800.86,0.0005315,31]
[312729073,1706189492957,-500.0,0.0005315,31]
[312729074,1706189492967,-624.88,0.0005315,31]
[312729075,1706189492977,-500.0,0.0005315,31]
[312729076,1706189492987,-500.0,0.0005315,31]
[312729077,1706189492997,-500.0,0.0005315,31]
[312729078,1706189493006,-500.0,0.0005315,31]
[312729079,1706189493016,-3861.01,0.0005315,5]
[312729080,1706189493025,-500.0,0.0005315,31]
[312729081,1706189493035,-500.0,0.0005315,31]
[312729082,1706189493044,-500.0,0.0005315,31]
[312729083,1706189493053,-562.52,0.0005315,31]
[312729084,1706189493063,-702.37,0.0005315,31]
[312729085,1706189493073,-500.0,0.0005315,31]
[312729086,1706189493082,-500.0,0.0005315,31]
[312729087,1706189493091,-588.44,0.0005315,31]
[312729088,1706189493102,-649.05025589,0.0005315,31]
[312729089,1706189493111,-500.0,0.0005315,31]
[312729090,1706189493121,-1562.8,0.0005315,31]
[312729091,1706189493130,-729.44,0.0005315,31]
[312729092,1706189493139,-674.25,0.0005315,31]
[312729093,1706189493149,-500.0,0.0005315,31]
[312729094,1706189493159,-500.0,0.0005315,31]
[312729095,1706189493168,-1360.58,0.0005315,31]
[312729096,1706189493177,-530.21,0.0005315,31]
[312729097,1706189493187,-694.83,0.0005315,2]
[312729098,1706189493197,-500.0,0.0005315,31]
[312729099,1706189493207,-500.0,0.0005315,31]
[312729100,1706189493217,-650.93,0.0005315,31]
[312729101,1706189493227,-622.63,0.0005315,31]
[312729102,1706189493237,-1172.34,0.0005315,31]
[312729103,1706189493246,-1372.24,0.0005315,31]
[312729104,1706189493256,-500.0,0.0005315,31]
[312729105,1706189493266,-473.54011416,0.0005315,31]
[312729106,1706189493276,-500.0,0.0005315,31]
[312729107,1706189493286,-500.0,0.0005315,31]
[312729108,1706189493295,-500.0,0.0005315,31]
[312729109,1706189493305,-1771.9,0.0005315,31]
[312729110,1706189493315,-634.99,0.0005315,31]
[312729111,1706189493324,-169.96448981,0.00053151,30]
[312729112,1706189493333,-172.51984569,0.00053151,30]
[312729113,1706189493342,-156.25909866,0.00053151,30]
[312729114,1706189493354,-151.0,0.00053173,2]
[312729115,1706189493364,-500.0,0.00053205,120]
[312729116,1706189493374,-171.60158336,0.00053244,60]
[312729117,1706189493384,-430.0,0.0005329,2]
[312729118,1706189493394,-657.655769,0.000533,19]
[312729119,1706189493403,-657.655768,0.000533,19]
[312729120,1706189493412,-500000.0,0.000533,120]
[312729121,1706189493421,-151.0,0.000533,14]
[312729122,1706189493431,-151.0,0.000533,14]
[312729123,1706189493441,-437.26172955,0.0005331,2]
[312729124,1706189493451,-450.0,0.00053327,5]
[312729125,1706189493461,-180.84621878,0.00053363,60]
[312729126,1706189493472,-6532.5397249,0.00053388,2]
[312729127,1706189493481,-2000.0,0.000534,2]
[312729128,1706189493491,-8000.0,0.000534,5]
[312729129,1706189493501,-1139.80682425,0.0005341,5]
[312729130,1706189493510,-632.99,0.00053424,31]
[312729131,1706189493520,-1224.41,0.00053424,31]
[312729132,1706189493529,-684.55,0.00053424,31]
[312729133,1706189493539,-465.15815181,0.00053424,31]
[312729134,1706189493547,-500.0,0.00053424,31]
[312729135,1706189493557,-525.67205978,0.00053424,31]
[312729136,1706189493566,-327.65002131,0.00053424,31]
[312729137,1706189493575,-500.0,0.00053424,31]
[312729138,1706189493584,-591.91,0.00053424,31]
[312729139,1706189493594,-500.0,0.00053424,31]
[312729140,1706189493608,-500.0,0.00053424,31]
[312729141,1706189493618,-503.96,0.00053424,31]
[312729142,1706189493745,-500.0,0.00053424,31]
[312729143,1706189493755,-500.0,0.00053424,31]
[312729144,1706189493764,-500.0,0.00053424,31]
[312729145,1706189493773,-500.0,0.00053424,14]
[312729146,1706189493783,-504.11,0.00053424,31]
[312729147,1706189493792,-500.0,0.00053424,31]
[312729148,1706189493814,-245.03515078,0.00053424,31]
[312729149,1706189493824,-511.82,0.00053424,31]
[312729150,1706189493834,-578.99,0.00053424,31]
[312729151,1706189493845,-500.0,0.00053424,2]
[312729152,1706189493857,-662.95,0.00053424,31]
[312729153,1706189493867,-500.0,0.00053424,31]
[312729154,1706189493877,-500.0,0.00053424,31]
[312729155,1706189493886,-500.0,0.00053424,31]
[312729156,1706189493896,-500.0,0.00053424,31]
[312729157,1706189493906,-253.11,0.00053424,31]
[312729158,1706189493915,-500.0,0.00053424,31]
[312729159,1706189493925,-706.68,0.00053424,31]
[312729160,1706189493935,-376.47531652,0.00053424,31]
[312729161,1706189493945,-500.0,0.00053424,31]
[312729162,1706189493955,-500.0,0.00053424,31]
[312729163,1706189493965,-511.95,0.00053424,31]
[312729164,1706189493975,-500.0,0.00053424,31]
[312729165,1706189493985,-500.0,0.00053424,31]
[312729166,1706189493995,-500.0,0.00053424,31]
[312729167,1706189494005,-500.0,0.00053424,31]
[312729168,1706189494015,-586.25,0.00053424,31]
[312729169,1706189494025,-500.0,0.00053424,31]
[312729170,1706189494035,-847.89,0.00053424,31]
[312729171,1706189494044,-500.0,0.00053424,31]
[312729172,1706189494054,-847.27,0.00053424,31]
[312729173,1706189494064,-553.41,0.00053424,2]
[312729174,1706189494074,-500.0,0.00053424,31]
[312729175,1706189494083,-552.54,0.00053424,31]
[312729176,1706189494093,-500.0,0.00053424,31]
[312729177,1706189494104,-500.0,0.00053424,31]
[312729178,1706189494114,-500.0,0.00053424,10]
[312729179,1706189494123,-533.04,0.00053424,31]
[312729180,1706189494133,-500.0,0.00053424,31]
[312729181,1706189494143,-500.0,0.00053424,31]
[312729182,1706189494153,-500.0,0.00053424,31]
[312729183,1706189494162,-1263.99,0.00053424,31]
[312729184,1706189494172,-592.51225274,0.00053424,31]
[312729185,1706189494182,-500.0,0.00053424,31]
[312729186,1706189494192,-500.0,0.00053424,31]
[312729187,1706189494202,-4443.62,0.00053424,31]
[312729188,1706189494212,-500.0,0.00053424,31]
[312729189,1706189494222,-500.0,0.00053424,31]
[312729190,1706189494232,-876.57,0.00053424,31]
[312729191,1706189494248,-793.58,0.00053424,31]
[312729192,1706189494257,-319.62298251,0.00053424,31]
[312729193,1706189494267,-605.29,0.00053424,31]
[312729194,1706189494277,-161.15959019,0.00053424,31]
[312729195,1706189494287,-798.73,0.00053424,31]
[312729196,1706189494296,-500.0,0.00053424,31]
[312729197,1706189494309,-741.46,0.00053424,31]
[312729198,1706189494319,-341.38963876,0.00053424,31]
[312729199,1706189494329,-522.59,0.00053424,31]
[312729200,1706189494339,-1440.42,0.00053424,31]
[312729201,1706189494350,-500.0,0.00053424,31]
[312729202,1706189494360,-3848.63,0.00053424,31]
[312729203,1706189494370,-659.44,0.00053424,31]
[312729204,1706189494380,-960.66,0.00053424,31]
[312729205,1706189494390,-3294.47,0.00053424,31]
[312729206,1706189494402,-1413.54,0.00053424,31]
[312729207,1706189494413,-557.9,0.00053424,31]
[312729208,1706189494423,-500.0,0.00053424,31]
[312729209,1706189494434,-151.0,0.00053424,14]
[312729210,1706189494444,-151.0,0.00053424,14]
[312729211,1706189494454,-151.0,0.00053424,14]
[312729212,1706189494464,-500.0,0.00053424,31]
[312729213,1706189494474,-658.39,0.00053424,31]
[312729214,1706189494483,-500.0,0.00053424,31]
[312729215,1706189494493,-707.38,0.00053424,31]
[312729216,1706189494502,-806.49,0.00053424,31]
[312729217,1706189494512,-534.89,0.00053424,31]
[312729218,1706189494522,-1000.0,0.00053424,7]
[312729219,1706189494532,-450.0,0.00053424,120]
[312729220,1706189494542,-500.0,0.00053424,31]
[312729221,1706189494551,-2660.25,0.00053424,31]
[312729222,1706189494561,-500.0,0.00053424,31]
[312729223,1706189494570,-654.66,0.00053424,31]
[312729224,1706189494581,-1220.14,0.00053424,31]
[312729225,1706189494591,-500.0,0.00053424,31]